[Event "Opocensky Memorial 2019"]
[Site "Prague"]
[Date "2019.06.28"]
[Round "8.2"]
[White "Pulpan, Jakub"]
[Black "Sergeev, Vladimir"]
[Result "1/2-1/2"]
[ECO "B04"]
[WhiteElo "2414"]
[BlackElo "2411"]
[Annotator "NA"]
[PlyCount "124"]
[EventDate "2019.06.22"]
[EventType "tourn"]
[EventCountry "CZE"]
[SourceTitle "playchess.com"]
[Source "ChessBase"]
[SourceQuality "1"]
[TimeControl "5400+30"]

1. e4 {[%emt 0:00:00]} Nf6 {[%emt 0:00:02]} 2. e5 {[%emt 0:00:01]} Nd5 {[%emt 0:00:02]} 3. d4 {[%emt 0:00:55]} c6 {[%emt 0:00:08]} 4. Nf3 {[%emt 0:02:42]} d6 {[%emt 0:00:07]} 5. c4 {[%emt 0:05:15]} Nc7 {[%emt 0:00:05]} 6. exd6 {[%emt 0:01:34]} exd6 {[%emt 0:00:06]} 7. Nc3 {[%emt 0:00:26]} Be7 {[%emt 0:00:16]} 8. h3 {[%emt 0:02:37]} d5 {[%emt 0:01:39]} 9. Bf4 {[%emt 0:06:06]} Bd6 {[%emt 0:02:08]} 10. Bg5 {[%emt 0:00:56]} Be7 {[%emt 0:03:44]} 11. Bf4 {[%emt 0:03:13]} Bd6 {[%emt 0:00:19]} 12. Qd2 {[%emt 0:00:57]} Qe7+ {[%emt 0:07:48]} 13. Be3 {[%emt 0:03:31]} O-O {[%emt 0:13:18]} 14. Be2 {[%emt 0:07:58]} dxc4 {[%emt 0:00:17]} 15. Bxc4 {[%emt 0:00:18]} Be6 {[%emt 0:00:45]} 16. Bd3 {[%emt 0:04:10]} Nd7 {[%emt 0:00:21]} 17. O-O {[%emt 0:02:27]} Rfe8 {[%emt 0:09:10]} 18. Ng5 {[%emt 0:11:25]} Nf6 {[%emt 0:01:54]} 19. Rae1 {[%emt 0:02:56]} Bd5 {[%emt 0:09:11]} 20. Bf4 {[%emt 0:05:32]} Bxf4 {[%emt 0:02:31]} 21. Qxf4 {[%emt 0:01:02]} Qd7 {[%emt 0:05:10]} 22. Re3 {[%emt 0:06:39]} h6 {[%emt 0:04:27]} 23. Nf3 {[%emt 0:01:02]} Ne6 {[%emt 0:07:04]} 24. Qg3 {[%emt 0:03:16]} Bxf3 {[%emt 0:01:57]} 25. Rxf3 {[%emt 0:00:39]} Qd8 {[%emt 0:06:19]} 26. Rd1 {[%emt 0:02:16]} Nxd4 {[%emt 0:04:05]} 27. Re3 {[%emt 0:00:43]} Qa5 {[%emt 0:03:09]} 28. Bc4 {[%emt 0:01:30]} Nf5 {[%emt 0:01:13]} 29. Rxe8+ {[%emt 0:06:11]} Rxe8 {[%emt 0:01:24]} 30. Qd3 {[%emt 0:01:16]} Qe5 {[%emt 0:00:14]} 31. Rd2 {[%emt 0:01:53]} g6 {[%emt 0:01:35]} 32. g3 {[%emt 0:03:16]} Kg7 {[%emt 0:00:27]} 33. Kg2 {[%emt 0:00:33]} h5 {[%emt 0:00:11]} 34. Re2 {[%emt 0:02:04]} Qd6 {[%emt 0:01:21]} 35. Rxe8 {[%emt 0:00:06]} Nxe8 {[%emt 0:00:35]} 36. Qe2 {[%emt 0:00:52]} Nf6 {[%emt 0:00:08]} 37. Bd3 {[%emt 0:00:31]} Nd4 {[%emt 0:00:17]} 38. Qe3 {[%emt 0:00:44]} b5 {[%emt 0:00:34]} 39. b3 {[%emt 0:01:46]} a6 {[%emt 0:00:21]} 40. Ne2 {[%emt 0:04:13]} Qd5+ {[%emt 0:00:27]} 41. Kg1 {[%emt 0:00:22]} Nf3+ {[%emt 0:06:07]} 42. Kf1 {[%emt 0:00:26]} Ne5 {[%emt 0:00:09]} 43. Nf4 {[%emt 0:00:24]} Qh1+ {[%emt 0:00:18]} 44. Ke2 {[%emt 0:00:01]} Nxd3 {[%emt 0:00:08]} 45. Qxd3 {[%emt 0:02:05]} Qa1 {[%emt 0:02:05]} 46. Qc2 {[%emt 0:01:04]} Qe5+ {[%emt 0:00:26]} 47. Kf1 {[%emt 0:01:11]} c5 {[%emt 0:01:38]} 48. Nd3 {[%emt 0:00:50]} Qe4 {[%emt 0:00:07]} 49. Qc3 {[%emt 0:00:26]} b4 {[%emt 0:00:18]} 50. Qc2 {[%emt 0:01:19]} Nd5 {[%emt 0:00:35]} 51. Kg1 {[%emt 0:00:47]} Nc3 {[%emt 0:00:26]} 52. Qd2 {[%emt 0:00:09]} Qd4 {[%emt 0:01:56]} 53. Qc2 {[%emt 0:00:13]} a5 {[%emt 0:00:28]} 54. h4 {[%emt 0:00:18]} Qe4 {[%emt 0:01:09]} 55. Qd2 {[%emt 0:00:15]} c4 {[%emt 0:01:06]} 56. Nf4 {[%emt 0:00:53]} cxb3 {[%emt 0:01:02]} 57. axb3 {[%emt 0:00:12]} Nb5 {[%emt 0:01:53]} 58. Nxh5+ {[%emt 0:00:12]} gxh5 {[%emt 0:01:44]} 59. Qg5+ {[%emt 0:00:02]} Kf8 {[%emt 0:00:35]} 60. Qxb5 {[%emt 0:00:02]} Qb1+ {[%emt 0:00:05]} 61. Kh2 {[%emt 0:01:14]} Qxb3 {[%emt 0:01:00]} 62. Qxa5 {[%emt 0:00:02]} Qb2 {[%emt 0:00:48]} 1/2-1/2

[Event "Opocensky Memorial 2019"]
[Site "Prague"]
[Date "2019.06.28"]
[Round "8.3"]
[White "Plischki, Sebastian"]
[Black "Neuman, Petr"]
[Result "1/2-1/2"]
[ECO "D94"]
[WhiteElo "2420"]
[BlackElo "2395"]
[Annotator "NA"]
[PlyCount "22"]
[EventDate "2019.06.22"]
[EventType "tourn"]
[EventCountry "CZE"]
[SourceTitle "playchess.com"]
[Source "ChessBase"]
[SourceQuality "1"]
[TimeControl "5400+30"]

1. d4 {[%emt 0:00:00]} d5 {[%emt 0:08:17]} 2. c4 {[%emt 0:00:00]} c6 {[%emt 0:00:03]} 3. Nf3 {[%emt 0:00:00]} Nf6 {[%emt 0:00:05]} 4. e3 {[%emt 0:00:00]} g6 {[%emt 0:00:12]} 5. Nc3 {[%emt 0:00:10]} Bg7 {[%emt 0:00:02]} 6. Be2 {[%emt 0:00:10]} O-O {[%emt 0:00:09]} 7. O-O {[%emt 0:00:08]} dxc4 {[%emt 0:00:03]} 8. Bxc4 {[%emt 0:00:07]} Bg4 {[%emt 0:00:04]} 9. Be2 {[%emt 0:00:14]} Nbd7 {[%emt 0:01:42]} 10. e4 {[%emt 0:01:05]} Bxf3 {[%emt 0:01:02]} 11. Bxf3 {[%emt 0:00:18]} e5 {[%emt 0:00:18]} 1/2-1/2

[Event "Opocensky Memorial 2019"]
[Site "Prague"]
[Date "2019.06.28"]
[Round "8.5"]
[White "Ivanov, Mikhail M"]
[Black "Kourousis, Epaminondas"]
[Result "1/2-1/2"]
[ECO "B14"]
[WhiteElo "2366"]
[BlackElo "2394"]
[Annotator "NA"]
[PlyCount "20"]
[EventDate "2019.06.22"]
[EventType "tourn"]
[EventCountry "CZE"]
[SourceTitle "playchess.com"]
[Source "ChessBase"]
[SourceQuality "1"]
[TimeControl "5400+30"]

1. d4 {[%emt 0:02:16]} Nf6 {[%emt 0:00:01]} 2. c4 {[%emt 0:00:21]} e6 {[%emt 0:00:22]} 3. Nc3 {[%emt 0:00:07]} Bb4 {[%emt 0:00:11]} 4. Bd2 {[%emt 0:00:05]} c5 {[%emt 0:00:32]} 5. e3 {[%emt 0:00:20]} cxd4 {[%emt 0:00:36]} 6. exd4 {[%emt 0:00:04]} d5 {[%emt 0:00:12]} 7. Nf3 {[%emt 0:01:04]} O-O {[%emt 0:00:20]} 8. h3 {[%emt 0:00:52]} Nc6 {[%emt 0:00:25]} 9. cxd5 {[%emt 0:00:23]} Nxd5 {[%emt 0:00:15]} 10. Bd3 {[%emt 0:00:16]} Nf6 {[%emt 1:32:06]} 1/2-1/2

[Event "Opocensky Memorial 2019"]
[Site "Prague"]
[Date "2019.06.29"]
[Round "9.1"]
[White "Kourousis, Epaminondas"]
[Black "Sokolov, Alexander"]
[Result "1-0"]
[ECO "B07"]
[WhiteElo "2394"]
[BlackElo "2382"]
[Annotator "RC"]
[PlyCount "87"]
[EventDate "2019.06.22"]
[EventType "tourn"]
[EventCountry "CZE"]
[SourceTitle "playchess.com"]
[Source "ChessBase"]
[SourceQuality "1"]
[TimeControl "5400+30"]

1. Nf3 {[%emt 0:00:00]} Nf6 {[%emt 0:00:00]} 2. d4 {[%emt 0:00:00]} g6 {[%emt 0:00:00]} 3. Nbd2 {[%emt 0:00:00]} Bg7 {[%emt 0:00:00]} 4. e4 {[%emt 0:00:00]} d6 {[%emt 0:00:00]} 5. Bd3 {[%emt 0:00:05]} O-O {[%emt 0:00:00]} 6. O-O {[%emt 0:00:05]} Nbd7 {[%emt 0:00:17]} 7. Re1 {[%emt 0:00:27]} e5 {[%emt 0:00:05]} 8. c3 {[%emt 0:00:06]} Re8 {[%emt 0:00:14]} 9. h3 {[%emt 0:00:51]} c6 {[%emt 0:02:59]} 10. Nf1 {[%emt 0:01:10]} Qc7 {[%emt 0:02:57]} 11. Ng3 {[%emt 0:00:34]} Nf8 {[%emt 0:00:10]} 12. a4 {[%emt 0:01:03]} a5 {[%emt 0:00:05]} 13. Be3 {[%emt 0:01:13]} h6 {[%emt 0:01:15]} 14. Qd2 {[%emt 0:01:49]} Kh7 {[%emt 0:00:06]} 15. Rad1 {[%emt 0:02:13]} Bd7 {[%emt 0:01:45]} 16. Bc2 {[%emt 0:05:47]} Ne6 {[%emt 0:06:05]} 17. Nh2 {[%emt 0:11:15]} Rad8 {[%emt 0:02:31]} 18. dxe5 {[%emt 0:21:55]} dxe5 {[%emt 0:00:12]} 19. Qd6 {[%emt 0:00:57]} Qxd6 {[%emt 0:02:33]} 20. Rxd6 {[%emt 0:00:10]} Bf8 {[%emt 0:00:14]} 21. Rd2 {[%emt 0:01:13]} Bc5 {[%emt 0:00:11]} 22. Ngf1 {[%emt 0:06:08]} Bxe3 {[%emt 0:10:49]} 23. Nxe3 {[%emt 0:00:09]} Nc5 {[%emt 0:00:05]} 24. Red1 {[%emt 0:00:33]} Re7 {[%emt 0:01:05]} 25. f3 {[%emt 0:03:18]} Ra8 {[%emt 0:00:24]} 26. Nc4 {[%emt 0:03:11]} Be6 {[%emt 0:00:05]} 27. Nxe5 {[%emt 0:05:40]} Bb3 {[%emt 0:03:54]} 28. Bxb3 {[%emt 0:04:50]} Nxb3 {[%emt 0:00:06]} 29. Rd6 {[%emt 0:00:11]} Ne8 {[%emt 0:00:20]} 30. Rd7 {[%emt 0:08:28]} Rxe5 {[%emt 0:00:10]} 31. Ng4 {[%emt 0:00:08]} Rh5 {[%emt 0:05:33]} 32. Rxf7+ {[%emt 0:01:34]} Kg8 {[%emt 0:00:05]} 33. Rxb7 {[%emt 0:03:17]} Nc5 {[%emt 0:00:22]} 34. Rb6 {[%emt 0:01:16]} Rc8 {[%emt 0:00:30]} 35. Ra1 {[%emt 0:00:51]} Kf7 {[%emt 0:02:41]} 36. b4 {[%emt 0:00:26]} Nd7 {[%emt 0:00:35]} 37. Ra6 {[%emt 0:01:26]} Nd6 {[%emt 0:03:55]} 38. Ra7 {[%emt 0:04:14]} Ke6 {[%emt 0:00:25]} 39. Rd1 {[%emt 0:01:52]} Ne5 {[%emt 0:00:59]} 40. f4 {[%emt 0:01:27]} Nec4 {[%emt 0:05:51]} 41. e5 {[%emt 0:01:08]} axb4 {[%emt 0:05:57]} 42. exd6 {[%emt 0:00:38]} bxc3 {[%emt 0:01:44]} 43. Re7+ {[%emt 0:00:16]} Kf5 {[%emt 0:00:03]} 44. Rd4 {[%emt 0:00:39]} 1-0